[Event "FINAL CAMPEONATO ABSOLUTO DE AJEDREZ CHILE 2018"]
[Site "CENTRO CULTURAL LO PRADO, Chile"]
[Date "2018.02.26"]
[Round "4.5"]
[White "HENRIQUEZ VILLAGRA, Cristobal"]
[Black "BARRIA ZUNIGA, Daniel"]
[Result "1-0"]
[TimeControl "90 minutos mas 30 segundos de incremento por movida"]
[WhiteTitle "GM"]
[BlackTitle "IM"]
[BlackFideId "3400816"]
[WhiteElo "2501"]
[BlackElo "2395"]

1. e4 {[%clk 01:30:42]} {[%emt 00:00:18]} c5 {[%clk 01:30:47]} {[%emt
00:00:13]} 2. Nf3 {[%clk 01:31:06]} {[%emt 00:00:06]} e6 {[%clk 01:30:59]}
{[%emt 00:00:17]} 3. d4 {[%clk 01:31:31]} {[%emt 00:00:06]} cxd4 {[%clk
01:31:05]} {[%emt 00:00:25]} 4. Nxd4 {[%clk 01:31:55]} {[%emt 00:00:05]} a6
{[%clk 01:31:33]} {[%emt 00:00:02]} 5. Bd3 {[%clk 01:32:15]} {[%emt 00:00:10]}
Bc5 {[%clk 01:31:49]} {[%emt 00:00:13]} 6. Nb3 {[%clk 01:32:31]} {[%emt
00:00:14]} Ba7 {[%clk 01:32:08]} {[%emt 00:00:10]} 7. O-O {[%clk 01:32:56]}
{[%emt 00:00:07]} Nc6 {[%clk 01:32:34]} {[%emt 00:00:05]} 8. Qg4 {[%clk
01:33:22]} {[%emt 00:00:04]} Nf6 {[%clk 01:32:32]} {[%emt 00:00:30]} 9. Qxg7
{[%clk 01:33:45]} {[%emt 00:00:07]} Rg8 {[%clk 01:31:16]} {[%emt 00:01:46]} 10.
Qh6 {[%clk 01:34:13]} {[%emt 00:00:03]} Ne5 {[%clk 01:20:15]} {[%emt 00:11:28]}
11. Be2 {[%clk 01:34:27]} {[%emt 00:00:18]} d6 {[%clk 01:13:58]} {[%emt
00:06:47]} 12. Bg5 {[%clk 01:31:29]} {[%emt 00:03:28]} Rg6 {[%clk 01:10:44]}
{[%emt 00:03:44]} 13. Qh4 {[%clk 01:31:14]} {[%emt 00:00:45]} h6 {[%clk
01:09:43]} {[%emt 00:01:30]} 14. Bxf6 {[%clk 01:31:13]} {[%emt 00:00:32]} Qxf6
{[%clk 01:09:40]} {[%emt 00:00:32]} 15. Qxf6 {[%clk 01:31:36]} {[%emt
00:00:08]} Rxf6 {[%clk 01:10:06]} {[%emt 00:00:04]} 16. N1d2 {[%clk 01:31:06]}
{[%emt 00:01:00]} Bd7 {[%clk 00:56:42]} {[%emt 00:13:54]} 17. g3 {[%clk
01:15:53]} {[%emt 00:15:43]} Rc8 {[%clk 00:54:39]} {[%emt 00:02:31]} 18. Rac1
{[%clk 01:04:03]} {[%emt 00:12:22]} Ke7 {[%clk 00:48:59]} {[%emt 00:06:09]} 19.
Kg2 {[%clk 01:03:04]} {[%emt 00:01:29]} Rg6 {[%clk 00:49:06]} {[%emt 00:00:22]}
20. c4 {[%clk 00:53:20]} {[%emt 00:10:15]} Rgg8 {[%clk 00:46:46]} {[%emt
00:02:49]} 21. f4 {[%clk 00:48:01]} {[%emt 00:05:51]} Nc6 {[%clk 00:45:14]}
{[%emt 00:02:01]} 22. Nb1 {[%clk 00:36:21]} {[%emt 00:12:10]} Nd4 {[%clk
00:40:33]} {[%emt 00:05:10]} 23. Nxd4 {[%clk 00:29:59]} {[%emt 00:06:53]} Bxd4
{[%clk 00:40:19]} {[%emt 00:00:44]} 24. Rc2 {[%clk 00:29:24]} {[%emt 00:01:06]}
b5 {[%clk 00:35:36]} {[%emt 00:05:13]} 25. Rd1 {[%clk 00:29:14]} {[%emt
00:00:40]} Bb6 {[%clk 00:27:09]} {[%emt 00:08:56]} 26. Kf1 {[%clk 00:16:49]}
{[%emt 00:12:56]} bxc4 {[%clk 00:15:12]} {[%emt 00:12:27]} 27. Rxc4 {[%clk
00:16:36]} {[%emt 00:00:43]} Rxc4 {[%clk 00:13:54]} {[%emt 00:01:47]} 28. Bxc4
{[%clk 00:17:04]} {[%emt 00:00:02]} a5 {[%clk 00:13:51]} {[%emt 00:00:33]} 29.
Nc3 {[%clk 00:14:36]} {[%emt 00:02:59]} Bc6 {[%clk 00:13:53]} {[%emt 00:00:27]}
30. Bb5 {[%clk 00:14:10]} {[%emt 00:00:58]} Bb7 {[%clk 00:11:42]} {[%emt
00:02:39]} 31. Ke2 {[%clk 00:11:19]} {[%emt 00:03:22]} Rc8 {[%clk 00:10:15]}
{[%emt 00:01:55]} 32. e5 {[%clk 00:09:46]} {[%emt 00:02:06]} Rd8 {[%clk
00:09:34]} {[%emt 00:01:11]} 33. Na4 {[%clk 00:06:01]} {[%emt 00:04:15]} Ba7
{[%clk 00:09:42]} {[%emt 00:00:21]} 34. Rc1 {[%clk 00:06:26]} {[%emt 00:00:06]}
Bb8 {[%clk 00:09:24]} {[%emt 00:00:48]} 35. exd6+ {[%clk 00:06:36]} {[%emt
00:00:20]} Bxd6 {[%clk 00:09:51]} {[%emt 00:00:04]} 36. Bd3 {[%clk 00:05:57]}
{[%emt 00:01:09]} Bd5 {[%clk 00:04:03]} {[%emt 00:06:17]} 37. Nb6 {[%clk
00:05:47]} {[%emt 00:00:40]} Bb7 {[%clk 00:02:37]} {[%emt 00:01:56]} 38. a3
{[%clk 00:04:59]} {[%emt 00:01:20]} Rb8 {[%clk 00:02:35]} {[%emt 00:00:30]} 39.
Rc2 {[%clk 00:03:50]} {[%emt 00:01:40]} Bd5 {[%clk 00:00:41]} {[%emt 00:02:23]}
40. Nxd5+ {[%clk 00:02:41]} {[%emt 00:01:39]} exd5 {[%clk 00:01:10]} {[%emt
00:00:01]} 41. Rd2 {[%clk 00:01:40]} {[%emt 00:01:31]} Ke6 {[%clk 00:01:12]}
{[%emt 00:00:27]} 42. Kd1 {[%clk 00:01:14]} {[%emt 00:00:58]} Be7 {[%clk
00:01:38]} {[%emt 00:00:03]} 43. Be2 {[%clk 00:01:18]} {[%emt 00:00:26]} Bf6
{[%clk 00:02:05]} {[%emt 00:00:03]} 44. Kc1 {[%clk 00:01:28]} {[%emt 00:00:21]}
Rb3 {[%clk 00:01:22]} {[%emt 00:01:09]} 45. Bg4+ {[%clk 00:01:13]} {[%emt
00:00:48]} Kd6 {[%clk 00:01:43]} {[%emt 00:00:08]} 46. Bh5 {[%clk 00:01:38]}
{[%emt 00:00:07]} Rb7 {[%clk 00:00:32]} {[%emt 00:01:41]} 47. Bf3 {[%clk
00:01:15]} {[%emt 00:00:52]} Rb5 {[%clk 00:00:45]} {[%emt 00:00:16]} 48. Kb1
{[%clk 00:01:04]} {[%emt 00:00:42]} Bg7 {[%clk 00:00:42]} {[%emt 00:00:32]} 49.
Ka2 {[%clk 00:01:28]} {[%emt 00:00:07]} Bf6 {[%clk 00:01:02]} {[%emt 00:00:10]}
50. Be2 {[%clk 00:01:29]} {[%emt 00:00:30]} Rc5 {[%clk 00:01:12]} {[%emt
00:00:18]} 51. Kb3 {[%clk 00:01:57]} {[%emt 00:00:04]} Rc1 {[%clk 00:00:36]}
{[%emt 00:01:06]} 52. Bf3 {[%clk 00:01:06]} {[%emt 00:01:20]} Rc5 {[%clk
00:00:42]} {[%emt 00:00:24]} 53. Ka4 {[%clk 00:01:01]} {[%emt 00:00:35]} d4
{[%clk 00:00:54]} {[%emt 00:00:17]} 54. Be4 {[%clk 00:01:02]} {[%emt 00:00:29]}
Bg7 {[%clk 00:01:17]} {[%emt 00:00:07]} 55. Bd3 {[%clk 00:01:13]} {[%emt
00:00:19]} Bf6 {[%clk 00:01:43]} {[%emt 00:00:04]} 56. Bb5 {[%clk 00:00:45]}
{[%emt 00:00:58]} Kd5 {[%clk 00:01:57]} {[%emt 00:00:15]} 57. Bd3 {[%clk
00:00:39]} {[%emt 00:00:36]} Bg7 {[%clk 00:02:24]} {[%emt 00:00:02]} 58. Rd1
{[%clk 00:00:56]} {[%emt 00:00:13]} Bf6 {[%clk 00:02:46]} {[%emt 00:00:08]} 59.
Re1 {[%clk 00:01:23]} {[%emt 00:00:02]} Kd6 {[%clk 00:02:57]} {[%emt 00:00:19]}
60. h4 {[%clk 00:01:35]} {[%emt 00:00:19]} Kd5 {[%clk 00:03:02]} {[%emt
00:00:24]} 61. Rh1 {[%clk 00:01:27]} {[%emt 00:00:38]} Kd6 {[%clk 00:02:35]}
{[%emt 00:00:58]} 62. g4 {[%clk 00:01:51]} {[%emt 00:00:07]} Ke7 {[%clk
00:01:41]} {[%emt 00:01:23]} 63. g5 {[%clk 00:01:45]} {[%emt 00:00:36]} hxg5
{[%clk 00:02:00]} {[%emt 00:00:10]} 64. hxg5 {[%clk 00:02:14]} {[%emt
00:00:02]} Bg7 {[%clk 00:02:24]} {[%emt 00:00:04]} 65. Re1+ {[%clk 00:02:43]}
{[%emt 00:00:02]} Kd6 {[%clk 00:00:32]} {[%emt 00:02:22]} 66. Re8 {[%clk
00:02:05]} {[%emt 00:01:08]} f6 {[%clk 00:00:41]} {[%emt 00:00:21]} 67. Rg8
{[%clk 00:01:05]} {[%emt 00:01:30]} Rc7 {[%clk 00:01:07]} {[%emt 00:00:03]} 68.
g6 {[%clk 00:01:16]} {[%emt 00:00:20]} Bh6 {[%clk 00:00:45]} {[%emt 00:00:52]}
69. Rd8+ {[%clk 00:01:29]} {[%emt 00:00:17]} Kc5 {[%clk 00:00:55]} {[%emt
00:00:20]} 70. b4+ {[%clk 00:01:16]} {[%emt 00:00:43]} axb4 {[%clk 00:01:15]}
{[%emt 00:00:10]} 71. axb4+ {[%clk 00:01:45]} {[%emt 00:00:02]} Kb6 {[%clk
00:01:00]} {[%emt 00:00:45]} 72. Rd6+ {[%clk 00:01:32]} {[%emt 00:00:43]} Ka7
{[%clk 00:00:33]} {[%emt 00:00:57]} 73. Rxd4 {[%clk 00:01:38]} {[%emt
00:00:23]} Rc3 {[%clk 00:00:57]} {[%emt 00:00:07]} 74. f5 {[%clk 00:01:20]}
{[%emt 00:00:48]} Kb6 {[%clk 00:01:06]} {[%emt 00:00:21]} 75. Be4 {[%clk
00:01:27]} {[%emt 00:00:23]} Bc1 {[%clk 00:00:41]} {[%emt 00:00:54]} 76. Rd6+
{[%clk 00:01:43]} {[%emt 00:00:14]} Kc7 {[%clk 00:01:01]} {[%emt 00:00:08]} 77.
g7 {[%clk 00:01:30]} {[%emt 00:00:44]} 1-0

[Event "FINAL CAMPEONATO ABSOLUTO DE AJEDREZ CHILE 2018"]
[Site "CENTRO CULTURAL LO PRADO, Chile"]
[Date "2018.02.26"]
[Round "4.6"]
[White "LOPEZ SILVA, Hugo Andres"]
[Black "PEREZ GORMAZ, Matias"]
[Result "1/2-1/2"]
[TimeControl "90 minutos mas 30 segundos de incremento por movida"]
[BlackTitle "FM"]
[WhiteElo "2389"]
[BlackElo "2410"]

1. e4 {[%clk 01:22:16]} {[%emt 00:08:42]} g6 {[%clk 01:30:53]} {[%emt
00:00:08]} 2. d4 {[%clk 01:21:45]} {[%emt 00:01:01]} Bg7 {[%clk 01:31:14]}
{[%emt 00:00:09]} 3. Nc3 {[%clk 01:20:33]} {[%emt 00:01:43]} d6 {[%clk
01:31:36]} {[%emt 00:00:08]} 4. f4 {[%clk 01:19:38]} {[%emt 00:01:25]} a6
{[%clk 01:31:36]} {[%emt 00:00:31]} 5. Nf3 {[%clk 01:17:20]} {[%emt 00:02:47]}
b5 {[%clk 01:31:54]} {[%emt 00:00:12]} 6. Bd3 {[%clk 01:07:29]} {[%emt
00:10:20]} Nd7 {[%clk 01:28:38]} {[%emt 00:03:47]} 7. e5 {[%clk 01:00:46]}
{[%emt 00:07:14]} c5 {[%clk 00:54:55]} {[%emt 00:34:13]} 8. Be3 {[%clk
00:34:01]} {[%emt 00:27:15]} Bb7 {[%clk 00:51:02]} {[%emt 00:04:23]} 9. Be4
{[%clk 00:28:31]} {[%emt 00:06:00]} Qb8 {[%clk 00:29:12]} {[%emt 00:22:20]} 10.
Bxb7 {[%clk 00:19:37]} {[%emt 00:09:24]} Qxb7 {[%clk 00:29:30]} {[%emt
00:00:11]} 11. dxc5 {[%clk 00:20:06]} {[%emt 00:00:02]} dxc5 {[%clk 00:19:06]}
{[%emt 00:10:54]} 12. Qd5 {[%clk 00:19:38]} {[%emt 00:00:58]} Qxd5 {[%clk
00:19:03]} {[%emt 00:00:34]} 13. Nxd5 {[%clk 00:20:06]} {[%emt 00:00:01]} Rc8
{[%clk 00:19:19]} {[%emt 00:00:14]} 14. O-O-O {[%clk 00:19:10]} {[%emt
00:01:27]} Nh6 {[%clk 00:18:13]} {[%emt 00:01:35]} 15. Rhe1 {[%clk 00:14:18]}
{[%emt 00:05:22]} Nf5 {[%clk 00:15:52]} {[%emt 00:02:50]} 16. Bf2 {[%clk
00:14:13]} {[%emt 00:00:35]} e6 {[%clk 00:16:07]} {[%emt 00:00:16]} 17. Nc3
{[%clk 00:13:43]} {[%emt 00:01:00]} h5 {[%clk 00:16:31]} {[%emt 00:00:06]} 18.
Ne4 {[%clk 00:12:32]} {[%emt 00:01:41]} Rc6 {[%clk 00:16:55]} {[%emt 00:00:06]}
19. Re2 {[%clk 00:09:34]} {[%emt 00:03:29]} Nb6 {[%clk 00:09:53]} {[%emt
00:07:32]} 20. Bxc5 {[%clk 00:07:36]} {[%emt 00:02:27]} Nd5 {[%clk 00:10:17]}
{[%emt 00:00:05]} 21. g3 {[%clk 00:08:01]} {[%emt 00:00:06]} Kd7 {[%clk
00:10:42]} {[%emt 00:00:05]} 22. Nfg5 {[%clk 00:01:09]} {[%emt 00:07:22]} Rhc8
{[%clk 00:11:01]} {[%emt 00:00:11]} 23. b4 {[%clk 00:01:05]} {[%emt 00:00:34]}
Ke8 {[%clk 00:11:27]} {[%emt 00:00:04]} 24. Rxd5 {[%clk 00:00:54]} {[%emt
00:00:41]} exd5 {[%clk 00:11:51]} {[%emt 00:00:06]} 25. Nd6+ {[%clk 00:01:19]}
{[%emt 00:00:05]} Rxd6 {[%clk 00:04:05]} {[%emt 00:08:16]} 26. exd6+ {[%clk
00:01:48]} {[%emt 00:00:02]} Kd7 {[%clk 00:04:26]} {[%emt 00:00:09]} 27. Nxf7
{[%clk 00:02:04]} {[%emt 00:00:13]} a5 {[%clk 00:04:51]} {[%emt 00:00:04]} 28.
Ne5+ {[%clk 00:00:34]} {[%emt 00:02:01]} Bxe5 {[%clk 00:05:17]} {[%emt
00:00:04]} 29. Rxe5 {[%clk 00:01:03]} {[%emt 00:00:01]} Kc6 {[%clk 00:05:08]}
{[%emt 00:00:38]} 30. Re6 {[%clk 00:01:03]} {[%emt 00:00:31]} Rg8 {[%clk
00:05:36]} {[%emt 00:00:02]} 31. Rf6 {[%clk 00:00:44]} {[%emt 00:00:49]} axb4
{[%clk 00:04:53]} {[%emt 00:01:13]} 32. Bxb4 {[%clk 00:01:13]} d4 {[%clk
00:03:32]} {[%emt 00:01:50]} 33. a3 {[%clk 00:00:36]} {[%emt 00:01:08]} h4
{[%clk 00:03:47]} {[%emt 00:00:15]} 34. g4 {[%clk 00:00:31]} {[%emt 00:00:35]}
Ne3 {[%clk 00:04:14]} {[%emt 00:00:02]} 35. h3 {[%clk 00:00:51]} {[%emt
00:00:11]} Nd5 {[%clk 00:04:42]} {[%emt 00:00:02]} 36. Rf7 {[%clk 00:00:36]}
{[%emt 00:00:45]} Nxb4 {[%clk 00:05:08]} {[%emt 00:00:03]} 37. axb4 {[%clk
00:01:03]} {[%emt 00:00:03]} Kxd6 {[%clk 00:05:33]} {[%emt 00:00:04]} 38. f5
{[%clk 00:00:33]} {[%emt 00:01:00]} Kd5 {[%clk 00:00:32]} {[%emt 00:05:31]} 39.
f6 {[%clk 00:00:51]} {[%emt 00:00:12]} Ke6 {[%clk 00:00:39]} {[%emt 00:00:23]}
40. Rg7 {[%clk 00:01:14]} {[%emt 00:00:08]} Rc8 {[%clk 00:00:57]} {[%emt
00:00:12]} 41. g5 {[%clk 00:00:34]} {[%emt 00:01:10]} Kf5 {[%clk 00:00:49]}
{[%emt 00:00:37]} 42. Kd2 {[%clk 00:00:32]} {[%emt 00:00:33]} Kxg5 {[%clk
00:01:12]} {[%emt 00:00:07]} 43. f7 {[%clk 00:00:34]} {[%emt 00:00:28]} Rf8
{[%clk 00:01:29]} {[%emt 00:00:12]} 44. Kd3 {[%clk 00:00:44]} {[%emt 00:00:20]}
Kh6 {[%clk 00:01:32]} {[%emt 00:00:27]} 45. Rg8 {[%clk 00:01:10]} {[%emt
00:00:05]} Rxf7 {[%clk 00:01:58]} {[%emt 00:00:04]} 46. Kxd4 {[%clk 00:01:27]}
{[%emt 00:00:13]} Rf4+ {[%clk 00:00:33]} {[%emt 00:01:54]} 47. Kc5 {[%clk
00:01:43]} {[%emt 00:00:14]} Rc4+ {[%clk 00:00:59]} {[%emt 00:00:04]} 48. Kxb5
{[%clk 00:02:09]} {[%emt 00:00:03]} Rxc2 {[%clk 00:01:26]} {[%emt 00:00:03]} 49.
Rd8 {[%clk 00:00:33]} {[%emt 00:02:07]} Rc3 {[%clk 00:01:40]} {[%emt 00:00:16]}
50. Ka4 {[%clk 00:00:33]} {[%emt 00:00:30]} Rxh3 {[%clk 00:01:52]} {[%emt
00:00:18]} 51. b5 {[%clk 00:00:57]} {[%emt 00:00:06]} Rh1 {[%clk 00:02:10]}
{[%emt 00:00:12]} 52. b6 {[%clk 00:00:49]} {[%emt 00:00:38]} Rb1 {[%clk
00:02:35]} {[%emt 00:00:04]} 53. Ka5 {[%clk 00:01:16]} {[%emt 00:00:03]} g5
{[%clk 00:02:05]} {[%emt 00:01:00]} 54. Ka6 {[%clk 00:01:13]} {[%emt 00:00:33]}
Kh5 {[%emt 00:02:02]} 55. b7 Ra1+ {[%clk 00:00:57]} {[%emt 00:00:05]} 56. Kb6
{[%clk 00:01:29]} {[%emt 00:00:43]} Rb1+ {[%clk 00:01:22]} {[%emt 00:00:05]} 57.
Kc6 {[%clk 00:01:56]} {[%emt 00:00:03]} Kg4 {[%clk 00:00:31]} {[%emt 00:01:21]}
58. b8=Q {[%clk 00:01:02]} {[%emt 00:01:25]} Rxb8 {[%clk 00:00:57]} {[%emt
00:00:03]} 59. Rxb8 {[%clk 00:01:29]} {[%emt 00:00:03]} h3 {[%clk 00:00:54]}
{[%emt 00:00:33]} 60. Kd5 {[%clk 00:01:43]} {[%emt 00:00:16]} h2 {[%clk
00:00:32]} {[%emt 00:00:52]} 61. Rh8 {[%clk 00:01:52]} {[%emt 00:00:20]} Kg3
{[%clk 00:00:59]} {[%emt 00:00:04]} 62. Ke4 {[%clk 00:01:52]} {[%emt 00:00:30]}
g4 {[%clk 00:01:15]} {[%emt 00:00:13]} 63. Kf5 {[%clk 00:02:05]} {[%emt
00:00:17]} Kg2 {[%clk 00:01:41]} {[%emt 00:00:04]} 1/2-1/2

[Event "FINAL CAMPEONATO ABSOLUTO DE AJEDREZ CHILE 2018"]
[Site "CENTRO CULTURAL LO PRADO, Chile"]
[Date "2018.02.27"]
[Round "5.1"]
[White "PEREZ GORMAZ, Matias"]
[Black "LLORENS SEPULVEDA, Marcelo"]
[Result "1-0"]
[TimeControl "90 minutos mas 30 segundos de incremento por movida"]
[WhiteTitle "FM"]
[BlackTitle "FM"]
[WhiteElo "2410"]
[BlackElo "2266"]

1. d4 {[%clk 01:22:12]} {[%emt 00:08:47]} Nf6 {[%clk 01:30:38]} {[%emt
00:00:21]} 2. Nf3 {[%clk 01:12:42]} {[%emt 00:10:01]} c5 {[%clk 01:27:06]}
{[%emt 00:04:02]} 3. e3 {[%clk 01:05:29]} {[%emt 00:07:44]} g6 {[%clk
01:26:16]} {[%emt 00:01:19]} 4. Be2 {[%clk 01:01:03]} {[%emt 00:04:56]} Bg7
{[%clk 01:26:13]} {[%emt 00:00:32]} 5. O-O {[%clk 01:00:37]} {[%emt 00:00:57]}
O-O {[%clk 01:26:29]} {[%emt 00:00:14]} 6. dxc5 {[%clk 00:54:41]} {[%emt
00:06:27]} Qc7 {[%clk 01:23:11]} {[%emt 00:03:47]} 7. c4 {[%clk 00:44:23]}
{[%emt 00:10:48]} Na6 {[%clk 01:19:00]} {[%emt 00:04:40]} 8. Nc3 {[%clk
00:44:40]} {[%emt 00:00:14]} Nxc5 {[%clk 01:19:19]} {[%emt 00:00:10]} 9. Qc2
{[%clk 00:45:03]} {[%emt 00:00:07]} d6 {[%clk 01:17:58]} {[%emt 00:01:51]} 10.
e4 {[%clk 00:41:51]} {[%emt 00:03:43]} Be6 {[%clk 01:09:56]} {[%emt 00:08:32]}
11. Nd4 {[%clk 00:40:20]} {[%emt 00:02:01]} Rfc8 {[%clk 01:08:34]} {[%emt
00:01:51]} 12. Be3 {[%clk 00:30:42]} {[%emt 00:10:08]} Qd8 {[%clk 01:03:56]}
{[%emt 00:05:07]} 13. Rad1 {[%clk 00:29:47]} {[%emt 00:01:27]} Qf8 {[%clk
01:04:13]} {[%emt 00:00:12]} 14. b4 {[%clk 00:26:37]} {[%emt 00:03:41]} Ncd7
{[%clk 01:02:39]} {[%emt 00:02:04]} 15. Qb3 {[%clk 00:24:12]} {[%emt 00:02:55]}
Kh8 {[%clk 01:01:51]} {[%emt 00:01:18]} 16. h3 {[%clk 00:22:45]} {[%emt
00:01:57]} Bh6 {[%clk 00:59:52]} {[%emt 00:02:28]} 17. f4 {[%clk 00:22:37]}
{[%emt 00:00:39]} Nh5 {[%clk 00:57:36]} {[%emt 00:02:46]} 18. Kh2 {[%clk
00:19:18]} {[%emt 00:03:48]} Qg7 {[%clk 00:57:28]} {[%emt 00:00:38]} 19. g3
{[%clk 00:13:25]} {[%emt 00:06:24]} a5 {[%clk 00:54:45]} {[%emt 00:03:13]} 20.
a3 {[%clk 00:13:00]} {[%emt 00:00:55]} axb4 {[%clk 00:55:05]} {[%emt 00:00:10]}
21. axb4 {[%clk 00:13:24]} {[%emt 00:00:06]} Rg8 {[%clk 00:34:49]} {[%emt
00:20:45]} 22. Rd3 {[%clk 00:07:21]} {[%emt 00:06:33]} Nxg3 {[%clk 00:21:27]}
{[%emt 00:13:52]} 23. Kxg3 {[%clk 00:04:37]} {[%emt 00:03:14]} g5 {[%clk
00:21:37]} {[%emt 00:00:20]} 24. f5 {[%clk 00:04:35]} {[%emt 00:00:32]} Bxc4
{[%clk 00:12:52]} {[%emt 00:09:15]} 25. Qxc4 {[%clk 00:01:52]} {[%emt
00:03:14]} Ne5 {[%clk 00:13:12]} {[%emt 00:00:09]} 26. f6 {[%clk 00:00:38]}
{[%emt 00:01:44]} Qg6 {[%clk 00:12:45]} {[%emt 00:00:57]} 27. Qb3 {[%clk
00:00:32]} {[%emt 00:00:36]} g4 {[%clk 00:12:10]} {[%emt 00:01:04]} 28. h4
{[%clk 00:00:51]} {[%emt 00:00:11]} Nxd3 {[%clk 00:11:02]} {[%emt 00:01:38]} 29.
Bxh6 {[%clk 00:00:39]} {[%emt 00:00:43]} Qxh6 {[%clk 00:11:10]} {[%emt
00:00:22]} 30. Nf5 {[%clk 00:00:43]} {[%emt 00:00:26]} Qxf6 {[%clk 00:11:12]}
{[%emt 00:00:28]} 31. Bxd3 {[%clk 00:01:04]} {[%emt 00:00:10]} e6 {[%clk
00:10:06]} {[%emt 00:01:35]} 32. Ne3 {[%clk 00:00:45]} {[%emt 00:00:49]} Qe5+
{[%clk 00:09:36]} {[%emt 00:01:00]} 33. Kg2 {[%clk 00:00:56]} {[%emt 00:00:19]}
f5 {[%clk 00:09:11]} {[%emt 00:00:55]} 34. Nc4 {[%clk 00:00:53]} {[%emt
00:00:33]} Qf6 {[%clk 00:04:07]} {[%emt 00:05:33]} 35. exf5 {[%clk 00:01:11]}
{[%emt 00:00:13]} g3 {[%clk 00:04:02]} {[%emt 00:00:35]} 36. fxe6 {[%clk
00:00:37]} {[%emt 00:01:04]} Qxe6 {[%clk 00:03:30]} {[%emt 00:01:01]} 37. Ne4
{[%clk 00:00:37]} {[%emt 00:00:29]} Qd5 {[%clk 00:01:42]} {[%emt 00:02:19]} 38.
Qc3 {[%clk 00:00:36]} {[%emt 00:00:32]} Rg7 {[%clk 00:02:10]} {[%emt 00:00:02]}
39. Ncxd6 {[%clk 00:00:37]} {[%emt 00:00:29]} Qa2+ {[%clk 00:02:00]} {[%emt
00:00:40]} 40. Bc2 {[%clk 00:00:34]} {[%emt 00:00:32]} h5 {[%clk 00:01:14]}
{[%emt 00:01:16]} 41. Nf5 {[%clk 00:00:34]} {[%emt 00:00:31]} 1-0

[Event "FINAL CAMPEONATO ABSOLUTO DE AJEDREZ CHILE 2018"]
[Site "CENTRO CULTURAL LO PRADO, Chile"]
[Date "2018.02.27"]
[Round "5.2"]
[White "BARRIA ZUNIGA, Daniel"]
[Black "LOPEZ SILVA, Hugo Andres"]
[Result "1/2-1/2"]
[TimeControl "90 minutos mas 30 segundos de incremento por movida"]
[WhiteTitle "IM"]
[WhiteFideId "3400816"]
[WhiteElo "2395"]
[BlackElo "2389"]

1. d4 {[%emt 00:07:45]} Nf6 {[%clk 01:22:39]} {[%emt 00:00:39]} 2. Nf3 {[%clk
01:31:16]} {[%emt 00:00:10]} g6 {[%clk 01:22:30]} {[%emt 00:00:40]} 3. c4
{[%clk 01:31:05]} {[%emt 00:00:40]} c5 {[%clk 01:21:30]} {[%emt 00:01:30]} 4.
d5 {[%clk 01:31:19]} {[%emt 00:00:16]} e6 {[%clk 01:21:57]} {[%emt 00:00:03]} 5.
dxe6 {[%clk 01:31:25]} {[%emt 00:00:24]} fxe6 {[%clk 01:22:25]} {[%emt
00:00:03]} 6. Nc3 {[%clk 01:31:21]} {[%emt 00:00:34]} d5 {[%clk 01:20:07]}
{[%emt 00:02:48]} 7. cxd5 {[%clk 01:29:26]} {[%emt 00:02:25]} exd5 {[%clk
01:20:13]} {[%emt 00:00:24]} 8. e4 {[%clk 01:29:29]} {[%emt 00:00:26]} d4
{[%clk 01:17:08]} {[%emt 00:03:36]} 9. e5 {[%clk 01:28:47]} {[%emt 00:01:11]}
Nd5 {[%clk 01:14:20]} {[%emt 00:03:19]} 10. Ne4 {[%clk 01:21:56]} {[%emt
00:07:16]} Bf5 {[%clk 01:08:11]} {[%emt 00:06:44]} 11. Bg5 {[%clk 01:09:41]}
{[%emt 00:12:44]} Qa5+ {[%clk 01:05:53]} {[%emt 00:02:50]} 12. Bd2 {[%clk
01:09:22]} {[%emt 00:00:47]} Qb6 {[%clk 01:00:07]} {[%emt 00:06:18]} 13. Bd3
{[%clk 00:51:59]} {[%emt 00:17:51]} Nd7 {[%clk 00:49:39]} {[%emt 00:10:59]} 14.
O-O {[%clk 00:45:19]} {[%emt 00:07:09]} Be7 {[%clk 00:47:23]} {[%emt 00:02:48]}
15. Re1 {[%clk 00:40:42]} {[%emt 00:05:06]} O-O {[%clk 00:41:03]} {[%emt
00:06:51]} 16. Bh6 {[%clk 00:32:41]} {[%emt 00:08:30]} 1/2-1/2